bitfinex-derivatives/quotes_SOLF0:USTF0_20250528
["timestamp","ask_amount","ask_price","bid_price","bid_amount"]
[1748417971184,5.7348,174.29,174.27,5.7354]
[1748417975593,28.1,174.32,174.26,0.03713853]
[1748417976979,5.7355,174.28,174.26,0.03713853]
[1748417977188,28.1,174.32,174.26,0.03713853]
[1748417977786,5.7354,174.28,174.26,0.03713853]
[1748417978183,5.7354,174.28,174.26,5.77283853]
[1748417978992,5.7354,174.28,174.26,0.03713853]
[1748417979492,5.7355,174.27,174.26,0.03713853]
[1748417980993,5.7355,174.27,174.26,0.03713853]
[1748417982192,5.7353,174.28,174.26,5.77293853]
[1748417986689,5.7353,174.28,174.26,0.03713853]
[1748417987992,5.7353,174.28,174.26,5.77293853]
[1748417992501,5.7355,174.27,174.26,0.03713853]
[1748418003709,5.7353,174.28,174.26,0.03713853]
[1748418003910,4.26446248,174.3,174.26,0.03713853]
[1748418005014,5.7355,174.27,174.26,0.03713853]
[1748418013921,4.26446248,174.28,174.21,33.8374]
[1748418014121,182.0,174.31,174.21,33.8374]
[1748418014122,4.26446248,174.26,174.21,33.8374]
[1748418014416,5.7352,174.28,174.22,4.26446248]
[1748418014619,4.26446248,174.3,174.24,4.26446248]
[1748418014811,0.03785278,174.29,174.25,0.03804844]
[1748418015018,0.03785278,174.29,174.26,5.7356]
[1748418016320,0.03785278,174.29,174.27,5.7354]
[1748418023324,0.03785278,174.29,174.25,0.03804844]
[1748418023724,5.7357,174.27,174.25,0.03804844]
[1748418024823,0.03785278,174.29,174.25,0.03804844]
[1748418025233,0.03785278,174.29,174.27,5.7355]
[1748418025824,5.77275278,174.29,174.26,5.7357]
[1748418028230,5.7352,174.28,174.26,5.7357]
[1748418029030,5.7352,174.28,174.25,5.77404844]
[1748418029735,0.03785278,174.29,174.25,0.03804844]
[1748418030235,4.26446248,174.28,174.25,0.03804844]
[1748418030730,5.7358,174.26,174.25,0.03804844]
[1748418032128,5.7356,174.27,174.25,0.03804844]
[1748418035933,5.7356,174.27,174.25,5.77414844]
[1748418039435,5.7353,174.28,174.25,5.77414844]
[1748418040142,5.7353,174.28,174.26,5.7358]
[1748418040643,10.03731526,174.29,174.26,5.7358]
[1748418041840,4.30231526,174.29,174.25,0.03804844]
[1748418042037,0.03785278,174.29,174.25,0.03804844]
[1748418043440,0.03785278,174.29,174.27,5.7352]
[1748418045745,5.77275278,174.29,174.27,5.7352]
[1748418047044,5.77275278,174.29,174.26,5.7357]
[1748418047549,5.77275278,174.29,174.25,0.03804844]
[1748418048546,5.77275278,174.29,174.27,5.7354]
[1748418051555,0.03785278,174.29,174.27,5.7354]
[1748418052758,5.77275278,174.29,174.27,5.7354]
[1748418053662,0.03785278,174.29,174.27,5.7354]
[1748418058263,5.77275278,174.29,174.27,5.7354]
[1748418060266,0.03785278,174.29,174.27,5.7354]
[1748418061262,5.77275278,174.29,174.27,5.7354]
[1748418061968,0.03785278,174.29,174.28,5.7352]
[1748418062468,0.03785278,174.29,174.28,9.99966248]
[1748418065168,0.03785278,174.29,174.28,38.07966248]
[1748418066670,5.7333,174.34,174.32,5.7338]
[1748418067063,28.08,174.36,174.3,4.26446248]
[1748418067371,186.26446248,174.37,174.33,5.7333]
[1748418067768,186.26446248,174.37,174.33,5.77486563]
[1748418068364,5.7331,174.35,174.33,0.04156563]
[1748418069272,5.7332,174.34,174.33,0.04156563]
[1748418072170,186.26446248,174.37,174.33,0.04156563]
[1748418072571,5.7326,174.36,174.33,5.77506563]
[1748418072970,186.26446248,174.37,174.33,0.04156563]
[1748418073166,5.733,174.35,174.33,0.04156563]
[1748418074164,5.7332,174.34,174.33,0.04156563]
[1748418083276,5.733,174.35,174.33,5.77496563]
[1748418083774,5.7326,174.36,174.34,5.7332]
[1748418083976,28.08,174.39,174.33,0.04156563]
[1748418084477,32.34446248,174.39,174.33,0.04156563]
[1748418084678,5.7324,174.37,174.34,5.733]
[1748418085284,5.7326,174.36,174.34,5.733]
[1748418086381,5.7326,174.36,174.33,0.04156563]
[1748418086779,5.7329,174.35,174.33,5.77496563]
[1748418086978,32.34446248,174.39,174.33,5.77496563]
[1748418087582,5.7327,174.36,174.33,5.77496563]
[1748418087792,5.7327,174.36,174.34,5.7332]
[1748418088484,32.34446248,174.39,174.34,5.7332]
[1748418088884,5.7325,174.37,174.34,5.7332]
[1748418090580,5.7326,174.36,174.34,5.7332]
[1748418092175,28.08,174.41,174.34,4.26446248]
[1748418092176,4.26446248,174.41,174.34,4.26446248]
[1748418092578,5.7318,174.39,174.36,5.7323]
[1748418092780,5.7318,174.39,174.36,5.7706478]
[1748418093777,4.26446248,174.41,174.37,5.7321]
[1748418094389,5.7317,174.39,174.37,5.7321]
[1748418096186,4.26446248,174.41,174.36,5.7708478]
[1748418096586,5.7322,174.38,174.36,0.0383478]
[1748418096885,4.26446248,174.39,174.36,0.0383478]
[1748418097285,5.7322,174.37,174.36,0.0383478]
[1748418100500,5.732,174.38,174.36,0.0383478]
[1748418101497,5.732,174.38,174.36,5.7707478]
[1748418101697,4.26446248,174.4,174.36,0.0383478]
[1748418101896,4.26446248,174.4,174.36,5.7708478]
[1748418102601,5.7321,174.38,174.36,5.7708478]
[1748418110501,5.7322,174.37,174.36,0.0383478]
[1748418111005,5.732,174.38,174.36,5.7708478]
[1748418112205,5.7322,174.37,174.36,0.0383478]
[1748418112404,4.26446248,174.4,174.36,0.0383478]
[1748418112605,5.7316,174.39,174.36,5.7708478]
[1748418114202,5.7319,174.38,174.36,5.7708478]
[1748418117507,4.26446248,174.4,174.36,5.7708478]
[1748418118010,5.7318,174.39,174.36,5.7708478]
[1748418118212,4.26446248,174.4,174.36,5.7708478]
[1748418118710,5.732,174.38,174.36,5.7708478]
[1748418119105,5.7322,174.37,174.36,0.0383478]
[1748418119410,4.26446248,174.4,174.36,0.0383478]
[1748418119810,5.7321,174.38,174.36,0.0383478]
[1748418120623,4.26446248,174.4,174.36,0.0383478]
[1748418121123,5.7321,174.38,174.36,5.7708478]
[1748418123124,5.7321,174.38,174.36,0.0383478]
[1748418124121,5.7322,174.37,174.36,0.0383478]
[1748418124921,5.732,174.38,174.36,0.0383478]
[1748418125824,5.7322,174.37,174.36,0.0383478]
[1748418128821,5.732,174.38,174.36,5.7708478]
[1748418129031,4.26446248,174.4,174.36,5.7708478]
[1748418129420,5.7318,174.39,174.36,5.7708478]
[1748418130430,5.7319,174.38,174.36,5.7708478]
[1748418130824,4.26446248,174.41,174.36,5.7708478]
[1748418131023,182.0,174.42,174.36,0.0383478]
[1748418131229,4.26446248,174.43,174.36,4.30281028]
[1748418131427,4.26446248,174.43,174.37,5.732]
[1748418131628,5.7315,174.4,174.37,5.732]
[1748418131830,5.7315,174.4,174.36,4.30281028]
[1748418132030,5.7315,174.4,174.37,5.7321]
[1748418132221,5.7315,174.4,174.36,4.30281028]
[1748418132630,5.7316,174.39,174.37,5.7321]
[1748418132829,4.26446248,174.43,174.37,5.7321]
[1748418133029,5.7311,174.41,174.38,5.7317]
[1748418133230,4.26446248,174.43,174.38,5.7317]
[1748418133734,28.08,174.44,174.38,5.7317]
[1748418134033,4.26446248,174.43,174.38,5.7317]
[1748418134635,5.7314,174.4,174.37,5.7321]
[1748418135637,5.7314,174.4,174.38,5.7319]
[1748418138029,5.731,174.41,174.38,5.7319]
[1748418138235,4.26446248,174.43,174.38,5.7319]
[1748418138432,5.7312,174.41,174.38,5.7319]
[1748418141138,5.7312,174.4,174.38,5.7319]
[1748418141539,5.731,174.41,174.39,5.7316]
[1748418141940,4.26446248,174.43,174.36,4.30281028]
[1748418142940,5.7312,174.4,174.38,5.7318]
[1748418151043,4.26446248,174.43,174.38,5.7318]
[1748418151847,5.7312,174.41,174.38,5.7318]
[1748418154051,5.7313,174.4,174.38,5.7318]
[1748418154253,4.26446248,174.43,174.36,4.30281028]
[1748418155750,4.26446248,174.43,174.38,5.7316]
[1748418157152,5.7313,174.4,174.38,5.7316]
[1748418160454,32.34446248,174.44,174.36,32.34281028]
[1748418160656,4.26446248,174.44,174.38,4.26446248]
[1748418160852,5.7304,174.43,174.4,5.7309]
[1748418161157,4.26446248,174.44,174.4,5.77062619]
[1748418161654,5.7303,174.43,174.4,5.77062619]
[1748418162554,5.7303,174.43,174.41,5.7309]
[1748418162952,5.7303,174.43,174.4,0.03972619]
[1748418163558,182.0,174.46,174.4,32.34418867]
[1748418164164,5.7304,174.43,174.4,28.07972619]
[1748418164353,182.0,174.46,174.4,28.07972619]
[1748418164650,186.26446248,174.46,174.4,28.07972619]
[1748418164860,5.7301,174.44,174.41,5.7308]
[1748418167162,5.7301,174.44,174.42,5.7306]
[1748418167355,5.7301,174.44,174.4,28.07972619]
[1748418167753,5.7303,174.43,174.4,28.07972619]
[1748418168160,4.26446248,174.46,174.4,28.07972619]
[1748418168359,5.7301,174.44,174.41,5.7307]
[1748418170061,5.7301,174.44,174.42,5.7306]
[1748418170664,5.7301,174.44,174.41,5.7308]
[1748418170860,9.99426248,174.45,174.4,137.81972619]
[1748418171159,9.99426248,174.45,174.42,5.7303]
[1748418172561,5.73,174.44,174.42,5.7303]
[1748418173865,5.7298,174.45,174.42,5.7303]
[1748418174461,210.04,174.5,174.4,137.81972619]
[1748418174659,4.26446248,174.47,174.4,142.08418867]
[1748418175171,210.04,174.5,174.4,28.07972619]
[1748418175461,4.26446248,174.46,174.4,137.81972619]
[1748418175669,5.7298,174.45,174.42,5.7303]
[1748418180368,5.73,174.44,174.42,5.7303]
[1748418181964,4.26446248,174.47,174.43,5.7302]
[1748418182272,4.26446248,174.47,174.43,5.76660207]
[1748418182763,5.7298,174.45,174.43,5.76660207]
[1748418182964,5.7298,174.45,174.43,0.03640207]
[1748418183764,5.7293,174.46,174.43,0.03640207]
[1748418184368,5.7293,174.46,174.44,5.7299]
[1748418184774,5.7293,174.46,174.43,5.76650207]
[1748418186170,5.7297,174.45,174.43,5.76650207]
[1748418187175,5.7297,174.45,174.43,0.03640207]
[1748418189468,5.7299,174.44,174.43,0.03640207]
[1748418190071,5.7297,174.45,174.43,5.76660207]
[1748418191871,5.7299,174.44,174.43,0.03640207]
[1748418192969,4.26446248,174.47,174.43,0.03640207]
[1748418193370,5.7299,174.44,174.43,0.03640207]
[1748418193565,210.04,174.5,174.43,0.03640207]
[1748418193770,4.26446248,174.47,174.43,0.03640207]
[1748418193970,5.7297,174.45,174.43,0.03640207]
[1748418194872,5.7294,174.46,174.43,5.76640207]
[1748418197479,4.26446248,174.47,174.43,5.76640207]
[1748418198179,5.7295,174.46,174.44,5.7299]
[1748418198378,5.7295,174.46,174.43,0.03640207]
[1748418198577,5.7295,174.46,174.43,5.76640207]
[1748418202477,5.7296,174.45,174.43,0.03640207]
[1748418202779,4.26446248,174.47,174.43,0.03640207]
[1748418203081,5.7297,174.45,174.43,0.03640207]
[1748418204884,5.7297,174.45,174.43,5.76660207]
[1748418210875,5.7297,174.45,174.43,0.03640207]
[1748418211687,5.7297,174.45,174.43,5.76660207]
[1748418212484,5.7297,174.45,174.43,0.03640207]
[1748418213384,5.7297,174.45,174.43,5.76650207]
[1748418216187,5.7299,174.44,174.43,0.03640207]
[1748418216991,5.7297,174.45,174.43,5.76660207]
[1748418224694,5.7297,174.45,174.43,0.03640207]
[1748418225994,5.7297,174.45,174.43,5.76660207]
[1748418226200,5.7297,174.45,174.43,0.03640207]
[1748418229003,5.7293,174.46,174.43,0.03640207]
[1748418229504,5.7293,174.46,174.43,5.76650207]
[1748418230409,5.7292,174.47,174.44,5.7298]
[1748418231203,5.7292,174.47,174.45,5.7296]
[1748418232499,5.7292,174.47,174.43,0.03640207]
[1748418233500,5.7292,174.47,174.45,5.7294]
[1748418234297,28.02,174.54,174.44,4.25577439]
[1748418234603,4.25577439,174.52,174.47,0.03626664]
[1748418234803,5.7282,174.5,174.48,5.7286]
[1748418235404,5.7282,174.5,174.47,0.03626664]
[1748418235708,5.7284,174.49,174.47,5.76506664]
[1748418236001,5.7284,174.49,174.47,0.03626664]
[1748418238500,5.7286,174.48,174.47,0.03626664]
[1748418246916,5.7284,174.49,174.47,5.76516664]
[1748418247117,5.7284,174.49,174.47,0.03626664]
[1748418247621,5.728,174.5,174.47,0.03626664]
[1748418248108,5.728,174.5,174.47,5.76496664]
[1748418249818,5.7284,174.49,174.47,5.76496664]
[1748418253116,5.7284,174.49,174.47,0.03626664]
[1748418254227,5.7286,174.48,174.47,0.03626664]
[1748418260726,4.25577439,174.52,174.47,0.03626664]
[1748418260930,4.25577439,174.46,174.39,28.02]
[1748418261130,4.25577439,174.44,174.4,28.02]
[1748418261334,5.7309,174.41,174.4,28.02]
[1748418264638,0.0372426,174.42,174.4,28.02]
[1748418265933,0.0372426,174.42,174.41,5.7309]
[1748418266128,0.0372426,174.42,174.4,28.02]
[1748418268035,0.0372426,174.42,174.4,33.751]
[1748418270538,0.0372426,174.42,174.4,28.02]
[1748418271135,0.0372426,174.42,174.4,33.751]
[1748418274940,0.0372426,174.42,174.4,28.02]
[1748418275542,4.29301699,174.42,174.4,28.02]
[1748418276053,5.7309,174.41,174.4,28.02]
[1748418279253,10.02371699,174.42,174.4,28.02]
[1748418279453,5.7679426,174.42,174.4,33.7512]
[1748418281847,0.0372426,174.42,174.4,33.7512]
[1748418288651,0.0372426,174.42,174.41,5.7309]
[1748418302263,0.0372426,174.42,174.4,33.7511]
[1748418303061,0.0372426,174.42,174.41,5.7309]
[1748418305863,0.0372426,174.42,174.4,33.7511]
[1748418306463,0.0372426,174.42,174.4,28.02]
[1748418307768,0.0372426,174.42,174.4,33.751]
[1748418308166,5.7679426,174.42,174.4,33.751]
[1748418309070,5.7309,174.41,174.4,28.02]
[1748418309564,4.29301699,174.42,174.39,28.06159825]
[1748418309870,5.7312,174.4,174.39,28.06159825]
[1748418310766,5.7312,174.4,174.39,0.04159825]
[1748418310966,9.98697439,174.4,174.39,0.04159825]
[1748418312567,5.7326,174.36,174.35,28.02]
[1748418313170,5.7326,174.36,174.34,523.04]
[1748418313869,5.7326,174.36,174.34,28.02]
[1748418314670,5.772572,174.37,174.34,33.7532]
[1748418317272,5.7326,174.36,174.34,33.7532]
[1748418318067,5.772472,174.37,174.34,33.7532]
[1748418319173,5.772472,174.37,174.35,5.7328]
[1748418319470,5.772472,174.37,174.34,28.02]
[1748418320068,5.772472,174.37,174.34,33.7531]
[1748418320571,5.772472,174.37,174.34,28.02]
[1748418320572,5.7326,174.36,174.34,28.02]
[1748418321371,4.25577439,174.43,174.35,4.25577439]
[1748418321572,4.25577439,174.43,174.35,10.25187439]
[1748418321772,5.7306,174.42,174.4,5.7312]
[1748418322570,5.7306,174.42,174.39,0.04108392]
[1748418322571,0.04178129,174.43,174.42,5.7306]
[1748418322774,0.04178129,174.43,174.42,33.7506]
[1748418323183,4.29755568,174.43,174.42,28.02]
[1748418323371,4.29755568,174.43,174.39,0.04108392]
[1748418323576,5.7308,174.42,174.39,28.06108392]
[1748418323774,4.29755568,174.43,174.39,28.06108392]
[1748418323974,0.04178129,174.43,174.39,28.06108392]
[1748418324879,5.7312,174.4,174.39,28.06108392]
[1748418325974,0.04178129,174.43,174.4,5.7311]
[1748418325975,5.77218129,174.43,174.4,5.7311]
[1748418326179,0.04178129,174.43,174.39,28.06108392]
[1748418327576,6.65361053,174.54,174.39,28.06108392]
[1748418327777,182.0,174.53,174.39,28.02]
[1748418327978,5.7286,174.49,174.46,5.7292]
[1748418328173,182.0,174.53,174.46,5.7292]
[1748418328377,182.0,174.52,174.48,0.03797661]
[1748418329177,5.7283,174.49,174.48,0.03797661]
[1748418329671,28.02,174.59,174.48,0.03797661]
[1748418329878,6.65361053,174.57,174.52,0.03698088]
[1748418330677,5.7273,174.53,174.52,0.03698088]
[1748418333079,5.72,174.53,174.45,28.02]
[1748418333281,2.0386,174.52,174.45,28.02]
[1748418333476,6.65361053,174.51,174.43,7.7452]
[1748418333980,5.7292,174.47,174.43,7.7452]
[1748418334183,5.7292,174.47,174.45,0.04270777]
[1748418334773,5.76538088,174.49,174.45,0.04270777]
[1748418335983,0.03698088,174.49,174.45,0.04270777]
[1748418336385,5.7291,174.47,174.45,0.04270777]
[1748418337579,5.7287,174.48,174.45,0.04270777]
[1748418338083,0.03698088,174.49,174.45,0.04270777]
[1748418338585,5.7287,174.48,174.45,0.04270777]
[1748418338884,0.03698088,174.49,174.45,0.04270777]
[1748418339087,182.0,174.48,174.45,0.04270777]
[1748418340887,5.7291,174.47,174.45,0.04270777]
[1748418350098,5.7293,174.46,174.45,0.04270777]
[1748418350695,5.73,174.44,174.4,5.7311]
[1748418351497,5.7303,174.43,174.39,33.8914]
[1748418351698,5.7723518,174.43,174.39,33.93450396]
[1748418352298,5.7307,174.42,174.39,33.93450396]
[1748418352501,0.0420518,174.43,174.39,28.20310396]
[1748418352701,5.7308,174.42,174.39,28.20310396]
[1748418354002,5.7308,174.42,174.39,33.93460396]
[1748418354202,0.0420518,174.43,174.39,28.20310396]
[1748418354597,0.0420518,174.43,174.4,5.731]
[1748418354801,5.7723518,174.43,174.4,5.731]
[1748418355204,0.0420518,174.43,174.4,5.731]
[1748418355999,0.0420518,174.43,174.39,0.04310396]
[1748418356606,0.0420518,174.43,174.4,5.7312]
[1748418356807,0.0420518,174.43,174.39,0.04310396]
[1748418357505,0.0420518,174.43,174.4,5.731]
[1748418358117,0.0420518,174.43,174.39,5.77450396]
[1748418358708,5.7308,174.42,174.39,5.77450396]
[1748418359716,0.0420518,174.43,174.4,5.7312]
[1748418359717,5.7723518,174.43,174.4,5.7312]
[1748418361616,0.0420518,174.43,174.41,5.7308]
[1748418362914,5.7725518,174.43,174.4,5.7311]
[1748418364412,5.7306,174.42,174.39,5.77450396]
[1748418364819,5.7306,174.42,174.39,0.04310396]
[1748418365912,5.7306,174.42,174.4,5.7312]
[1748418366516,5.7723518,174.43,174.4,5.7312]
[1748418369620,5.7306,174.42,174.4,5.7312]
[1748418369820,0.0420518,174.43,174.4,5.7312]
[1748418370628,5.7725518,174.43,174.41,5.7308]
[1748418371225,5.7306,174.42,174.4,5.7311]
[1748418373021,5.7724518,174.43,174.4,5.7311]
[1748418375428,5.7306,174.42,174.39,5.77460396]
[1748418375831,5.7306,174.42,174.39,0.04310396]
[1748418376933,0.0420518,174.43,174.39,5.77460396]
[1748418377536,5.7307,174.42,174.39,5.77460396]
[1748418377831,0.0420518,174.43,174.39,0.04310396]
[1748418378822,5.7306,174.42,174.39,0.04310396]
[1748418379634,5.7309,174.41,174.39,0.04310396]
[1748418381033,5.7307,174.42,174.39,5.77460396]
[1748418381433,0.0420518,174.43,174.39,0.04310396]
[1748418381434,6.69566233,174.43,174.39,0.04310396]
[1748418381635,5.7312,174.4,174.39,0.04310396]
[1748418393039,188.69566233,174.43,174.39,0.04310396]
[1748418393440,5.7306,174.42,174.39,5.77440396]
[1748418393842,182.0420518,174.43,174.39,0.04310396]
[1748418394042,182.0420518,174.43,174.4,5.7312]
[1748418394443,187.7725518,174.43,174.4,5.7312]
[1748418394641,182.0420518,174.43,174.39,5.77450396]
[1748418394841,5.7307,174.42,174.39,5.77450396]
[1748418397738,5.7723518,174.43,174.39,0.04310396]
[1748418398747,5.7723518,174.43,174.4,5.731]
[1748418400749,5.7306,174.42,174.4,5.731]
[1748418404053,0.0420518,174.43,174.39,0.04310396]
[1748418404645,5.7312,174.4,174.39,0.04310396]
[1748418407157,5.7309,174.41,174.39,0.04310396]
[1748418407656,0.0420518,174.43,174.39,0.04310396]
[1748418407855,0.0420518,174.43,174.4,5.731]
[1748418407856,5.7723518,174.43,174.4,5.731]
[1748418408058,0.0420518,174.43,174.39,0.04310396]
[1748418408962,0.0420518,174.43,174.41,5.7308]
[1748418413973,0.0420518,174.43,174.39,0.04310396]
[1748418414965,5.7308,174.42,174.39,5.77470396]
[1748418415162,0.0420518,174.43,174.39,0.04310396]
[1748418415471,5.7308,174.42,174.39,0.04310396]
[1748418416167,5.7309,174.41,174.39,0.04310396]
[1748418420376,5.7312,174.4,174.39,0.04310396]
[1748418420768,34.83566233,174.43,174.32,28.14]
[1748418421075,216.79361053,174.43,174.32,28.14]
[1748418421769,0.0362,174.39,174.36,0.03996195]
[1748418421969,28.1762,174.39,174.36,0.03996195]
[1748418422365,5.7322,174.37,174.36,0.03996195]
[1748418430381,5.7321,174.38,174.36,0.03996195]
[1748418431674,28.1762,174.39,174.36,0.03996195]
[1748418432075,5.7322,174.37,174.36,0.03996195]
[1748418433171,5.732,174.38,174.36,0.03996195]
[1748418435879,28.1762,174.39,174.36,0.03996195]
[1748418436977,33.9078,174.39,174.37,5.7322]
[1748418438279,5.7319,174.38,174.36,5.77236195]
[1748418438983,33.9079,174.39,174.36,5.77236195]
[1748418439177,33.9079,174.39,174.37,5.7322]
[1748418439776,33.9079,174.39,174.36,5.77236195]
[1748418443986,38.16785384,174.39,174.36,5.77236195]
[1748418447789,5.7319,174.38,174.36,5.77236195]
[1748418449286,38.16785384,174.39,174.36,5.77236195]
[1748418449486,32.43615384,174.39,174.37,5.7322]
[1748418449885,38.16775384,174.39,174.37,5.7322]
[1748418451097,32.43615384,174.39,174.37,5.7322]
[1748418451891,38.16775384,174.39,174.36,5.77236195]
[1748418452094,32.43615384,174.39,174.36,0.03996195]
[1748418452693,5.7321,174.38,174.36,5.77246195]
[1748418453893,38.16785384,174.39,174.36,5.77246195]
[1748418454393,5.7319,174.38,174.36,0.03996195]
[1748418460900,5.7319,174.38,174.36,5.77246195]
[1748418470210,5.7319,174.38,174.36,0.03996195]
[1748418472416,5.7319,174.38,174.36,5.77246195]
[1748418478123,0.0362,174.39,174.37,5.732]
[1748418481617,5.7678,174.39,174.37,5.732]
[1748418482419,5.7319,174.38,174.36,5.77236195]
[1748418484126,5.7319,174.38,174.36,0.03996195]
[1748418485725,5.7319,174.38,174.36,5.77246195]
[1748418487221,5.7678,174.39,174.36,5.77246195]
[1748418487929,0.0362,174.39,174.37,5.7321]
[1748418488131,0.0362,174.39,174.36,0.03996195]
[1748418488629,5.768,174.39,174.36,5.77236195]
[1748418488831,0.0362,174.39,174.36,5.77236195]
[1748418489832,5.7321,174.38,174.36,0.03996195]
[1748418490933,5.7322,174.37,174.36,0.03996195]
[1748418491821,0.0362,174.39,174.36,0.03996195]
[1748418492026,5.732,174.38,174.36,0.03996195]
[1748418493428,5.7678,174.39,174.36,5.77246195]
[1748418493630,5.7678,174.39,174.36,0.03996195]
[1748418494135,5.7678,174.39,174.37,5.7322]
[1748418494434,5.7319,174.38,174.36,0.03996195]
[1748418494632,5.7319,174.38,174.36,5.77226195]
[1748418495033,5.7679,174.39,174.36,0.03996195]
[1748418495433,5.7679,174.39,174.37,5.7322]
[1748418496833,5.7679,174.39,174.36,5.77236195]
[1748418497037,5.7321,174.38,174.36,5.77236195]
[1748418497436,0.0362,174.39,174.36,0.03996195]
[1748418497634,5.7319,174.38,174.36,0.03996195]
[1748418498943,5.7319,174.38,174.36,5.77246195]
[1748418499828,0.0362,174.39,174.36,0.03996195]
[1748418500030,0.0362,174.39,174.36,4.29949222]
[1748418500930,0.0362,174.39,174.38,5.7319]
[1748418503736,0.0362,174.39,174.37,5.7321]
[1748418506041,5.7679,174.39,174.36,5.77246195]
[1748418506238,0.0362,174.39,174.36,0.03996195]
[1748418506433,4.29573027,174.39,174.36,0.03996195]
[1748418506643,5.7322,174.37,174.36,0.03996195]
[1748418512447,5.732,174.38,174.36,5.77246195]
[1748418512648,0.0362,174.39,174.36,0.03996195]
[1748418513050,0.0362,174.39,174.38,5.7319]
[1748418549784,0.0362,174.39,174.38,7.7684]
[1748418558296,5.7294,174.46,174.44,5.7299]
[1748418559899,5.77183587,174.47,174.44,5.7299]
[1748418560691,5.7294,174.46,174.44,5.7299]
[1748418564699,5.77193587,174.47,174.44,5.7299]
[1748418565501,4.25953027,174.51,174.45,32.27953027]
[1748418565800,4.25953027,174.51,174.45,28.02]
[1748418566099,4.25953027,174.51,174.46,5.729]
[1748418566295,4.25953027,174.51,174.47,0.04324222]
[1748418566493,0.04092148,174.5,174.47,0.04324222]
[1748418566690,5.7286,174.49,174.47,0.04324222]
[1748418567594,5.7286,174.49,174.47,5.77214222]
[1748418568001,5.76902148,174.5,174.47,5.77214222]
[1748418568498,0.04092148,174.5,174.47,5.77214222]
[1748418569798,0.04092148,174.5,174.35,28.02]
[1748418569799,4.25953027,174.49,174.35,28.02]
[1748418569993,4.25953027,174.42,174.35,32.27953027]
[1748418570298,5.7311,174.41,174.37,5.7319]
[1748418570802,0.0418188,174.41,174.37,5.77032107]
[1748418571001,5.7313,174.4,174.37,5.77032107]
[1748418571403,5.7313,174.4,174.37,0.03842107]
[1748418571603,0.0418188,174.41,174.37,0.03842107]
[1748418571803,4.25953027,174.4,174.37,0.03842107]
[1748418572301,5.7316,174.39,174.37,0.03842107]
[1748418572704,5.7313,174.4,174.37,0.03842107]
[1748418573405,5.7313,174.4,174.37,5.77062107]
[1748418573797,4.25953027,174.49,174.37,0.03842107]
[1748418574000,39.4745,174.53,174.4,4.25953027]
[1748418574001,4.25953027,174.47,174.4,4.25953027]
[1748418574199,4.25953027,174.47,174.4,32.27953027]
[1748418574395,4.25953027,174.47,174.4,28.02]
[1748418575008,0.0373627,174.45,174.42,0.04150905]
[1748418575805,5.7671627,174.45,174.42,5.77200905]
[1748418577608,6.65124412,174.44,174.33,28.02]
[1748418577808,8.60984412,174.44,174.33,28.02]
[1748418578002,5.7311,174.41,174.36,5.7324]
[1748418578205,12.61864412,174.44,174.36,5.7324]
[1748418578400,5.7315,174.4,174.38,0.03688362]
[1748418578606,0.03908583,174.42,174.38,0.03688362]
[1748418579609,5.7315,174.39,174.38,0.03688362]
[1748418593009,5.7327,174.36,174.33,5.7335]
[1748418593208,216.67124412,174.41,174.3,28.34]
[1748418593412,182.0,174.4,174.3,28.34]
[1748418594015,5.7331,174.35,174.33,0.0418648]
[1748418595917,5.7331,174.35,174.33,5.7753648]
[1748418596120,28.34,174.47,174.34,28.34]
[1748418596319,28.34,174.47,174.38,5.7317]
[1748418596619,5.7304,174.43,174.34,28.34]
[1748418597015,5.7304,174.43,174.39,5.7315]
[1748418597216,5.76995667,174.43,174.39,0.04393029]
[1748418597629,5.76995667,174.43,174.4,5.7311]
[1748418598819,5.7306,174.42,174.4,5.7311]
[1748418599023,28.37955667,174.43,174.39,0.04393029]
[1748418599419,2.0609,174.42,174.39,0.04393029]
[1748418601018,5.7312,174.4,174.39,0.04393029]
[1748418604418,5.7312,174.4,174.31,28.34]
[1748418604723,5.733,174.35,174.31,28.34]
[1748418605117,5.7327,174.36,174.33,5.7333]
[1748418605524,5.77311001,174.36,174.33,5.77432366]
[1748418606527,5.7329,174.35,174.33,5.77432366]